fUST/lending_fUST_20250914
["ID","MTS","AMOUNT","RATE_DAILY","PERIOD"]
[385454267,1757861452859,-480.0,0.00022739,3]
[385454268,1757861452870,-480.0,0.00022739,3]
[385454269,1757861452882,-523.27,0.00022739,3]
[385454270,1757861452894,-1319.58,0.00022739,3]
[385454271,1757861452907,-480.0,0.00022739,3]
[385454272,1757861452920,-480.0,0.00022739,3]
[385454273,1757861452931,-612.77,0.00022739,3]
[385454274,1757861452943,-829.63,0.00022739,3]
[385454275,1757861452954,-226.04918915,0.00022739,3]
[385454276,1757861453050,-897.88081085,0.00022739,3]
[385454277,1757861453059,-1467.29,0.00022739,3]
[385454278,1757861453068,-498.23,0.00022739,3]
[385454279,1757861453078,-1038.84,0.00022739,3]
[385454280,1757861453089,-616.35,0.00022739,3]
[385454281,1757861453098,-2556.61,0.00022739,3]
[385454282,1757861453107,-909.61,0.00022739,3]
[385454283,1757861453117,-1593.57,0.00022739,3]
[385454284,1757861453126,-834.99,0.00022739,3]
[385454285,1757861453136,-1158.75,0.00022739,3]
[385454286,1757861453145,-4013.07,0.00022739,3]
[385454287,1757861453153,-780.28,0.00022739,3]
[385454288,1757861453163,-602.68,0.00022739,3]
[385454289,1757861453172,-569.55,0.00022739,3]
[385454290,1757861453182,-736.66,0.00022739,3]
[385454291,1757861453191,-24338.45,0.00022739,3]
[385454292,1757861453201,-2989.2,0.00022739,3]
[385454293,1757861453211,-1380.42,0.00022739,3]
[385454294,1757861453220,-1178.35,0.00022739,3]
[385454295,1757861453230,-2677.4,0.00022739,3]
[385454296,1757861453239,-480.0,0.00022739,3]
[385454297,1757861453249,-1461.19,0.00022739,3]
[385454298,1757861453259,-480.0,0.00022739,3]
[385454299,1757861453268,-567.85,0.00022739,3]
[385454300,1757861453278,-1953.71,0.00022739,3]
[385454301,1757861453287,-209.52565106,0.00022739,3]
[385454302,1757861453525,-480.0,0.00022739,3]
[385454303,1757861453546,-1088.61,0.00022739,3]
[385454304,1757861453563,-480.0,0.00022739,3]
[385454305,1757861453573,-892.19,0.00022739,3]
[385454306,1757861453582,-151.0,0.00022739,7]
[385454307,1757861453594,-1173.4,0.00022739,3]
[385454308,1757861453603,-151.0,0.00022739,7]
[385454309,1757861453613,-521.82,0.00022739,3]
[385454310,1757861453622,-818.3,0.00022739,3]
[385454311,1757861453631,-600.82,0.00022739,3]
[385454312,1757861453641,-3090.32,0.00022739,3]
[385454313,1757861453651,-2735.44,0.00022739,3]
[385454314,1757861453660,-480.0,0.00022739,2]
[385454315,1757861453669,-3000.0,0.0002274,2]
[385454316,1757861453679,-3000.0,0.0002275,2]
[385454317,1757861453688,-168.0,0.00022753,2]
[385454318,1757861453698,-3000.0,0.0002276,2]
[385454319,1757861453708,-3000.0,0.0002277,2]
[385454320,1757861453717,-3000.0,0.0002278,2]
[385454321,1757861453727,-3000.0,0.0002279,2]
[385454322,1757861453736,-3000.0,0.000228,2]
[385454323,1757861453746,-184.283136,0.000228,2]
[385454324,1757861453755,-1994.36040209,0.0002281,2]
[385454325,1757861453768,-1005.63959791,0.0002281,2]
[385454326,1757861453777,-1000.0,0.0002281,2]
[385454327,1757861453786,-3000.0,0.0002282,2]
[385454328,1757861453796,-3000.0,0.0002283,2]
[385454329,1757861453806,-4184.583654,0.0002284,2]
[385454330,1757861453816,-168.0,0.00022844,2]
[385454331,1757861453826,-1058.15250944,0.00022851,2]
[385454332,1757861453835,-606.05616931,0.00022854,2]
[385454333,1757861453847,-168.0,0.00022899,2]
[385454334,1757861453856,-168.0,0.00022908,2]
[385454335,1757861453866,-2433.40233792,0.00022938,2]
[385454336,1757861453875,-6248.16573142,0.00022968,2]
[385454337,1757861453886,-592.73,0.00022968,2]
[385454338,1757861453929,-1743.00980745,0.00022968,2]
[385454339,1757861453938,-217.77739939,0.00023,3]
[385454340,1757861453949,-2000.0,0.00023,2]
[385454341,1757861453958,-233.1999649,0.00023,3]
[385454342,1757861453967,-531.23217266,0.00023,3]
[385454343,1757861453976,-847.27885267,0.00023,3]
[385454344,1757861453987,-186.0,0.00023012,2]
[385454345,1757861453997,-831.0,0.00023012,2]
[385454346,1757861454007,-157.0,0.00023012,2]
[385454347,1757861454016,-500.0,0.00023013,5]
[385454348,1757861454025,-480.0,0.00023013,3]
[385454349,1757861454034,-480.0,0.00023013,3]
[385454350,1757861454044,-480.0,0.00023013,2]
[385454351,1757861454054,-673.11,0.00023013,3]
[385454352,1757861454063,-480.0,0.00023013,3]
[385454353,1757861454072,-480.0,0.00023013,3]
[385454354,1757861454082,-480.0,0.00023013,3]
[385454355,1757861454093,-974.82,0.00023013,3]
[385454356,1757861454103,-225.57180293,0.00023013,3]
[385454357,1757861454472,-596.72819707,0.00023013,3]
[385454358,1757861454482,-480.0,0.00023013,3]
[385454359,1757861454491,-590.24,0.00023013,3]
[385454360,1757861454501,-480.0,0.00023013,3]
[385454361,1757861454510,-1137.16,0.00023013,3]
[385454362,1757861454519,-480.0,0.00023013,3]
[385454363,1757861454528,-480.0,0.00023013,3]
[385454364,1757861454537,-480.0,0.00023013,3]
[385454365,1757861454547,-712.05,0.00023013,3]
[385454366,1757861454555,-480.0,0.00023013,3]
[385454367,1757861454565,-480.0,0.00023013,3]
[385454368,1757861454574,-497.51,0.00023013,3]
[385454369,1757861454584,-500.0,0.00023013,3]
[385454370,1757861454598,-480.0,0.00023013,3]
[385454371,1757861454607,-668.04,0.00023013,3]
[385454372,1757861454617,-986.65,0.00023013,3]
[385454373,1757861454626,-1030.51,0.00023013,3]
[385454374,1757861454636,-892.61,0.00023013,3]
[385454375,1757861454645,-480.0,0.00023013,3]
[385454376,1757861454655,-822.49,0.00023013,3]
[385454377,1757861454665,-944.76,0.00023013,3]
[385454378,1757861454675,-1941.17,0.00023013,3]
[385454379,1757861454684,-948.56,0.00023013,3]
[385454380,1757861454693,-480.0,0.00023013,3]
[385454381,1757861454702,-603.67,0.00023013,3]
[385454382,1757861454712,-1115.86,0.00023013,3]
[385454383,1757861454721,-500.0,0.00023013,3]
[385454384,1757861454730,-480.0,0.00023013,3]
[385454385,1757861454740,-496.57,0.00023013,3]
[385454386,1757861454749,-480.0,0.00023013,3]
[385454387,1757861454759,-480.0,0.00023013,3]
[385454388,1757861454768,-480.0,0.00023013,3]
[385454389,1757861454777,-480.0,0.00023013,3]
[385454390,1757861454787,-982.19,0.00023013,3]
[385454391,1757861454796,-480.0,0.00023013,3]
[385454392,1757861454805,-584.79,0.00023013,3]
[385454393,1757861454815,-480.0,0.00023013,3]
[385454394,1757861454825,-951.57,0.00023013,3]
[385454395,1757861454834,-480.0,0.00023013,3]
[385454396,1757861454845,-480.0,0.00023013,3]
[385454397,1757861454855,-1979.93,0.00023013,3]
[385454398,1757861454864,-480.0,0.00023013,3]
[385454399,1757861454874,-480.0,0.00023013,3]
[385454400,1757861454883,-480.0,0.00023013,3]
[385454401,1757861454892,-480.0,0.00023013,3]
[385454402,1757861454902,-1310.17,0.00023013,3]
[385454403,1757861454914,-191.64659216,0.00023013,3]
[385454404,1757861454927,-816.42340784,0.00023013,3]
[385454405,1757861454936,-315.09715624,0.00023013,3]
[385454406,1757861454947,-480.0,0.00023013,3]
[385454407,1757861454957,-248.83943592,0.00023013,2]
[385454408,1757861523151,602.49213273,0.000199,2]
[385454415,1757861713527,606.44160002,0.000199,2]
[385454416,1757861723590,302.9394212,0.00019801,2]
[385454417,1757861723652,322.0484203,0.00019999,4]
[385454418,1757861723676,132.36071151,0.00019999,4]
[385454419,1757861762476,150.0,0.0002012,2]
[385454420,1757861869281,5000.0,0.0002012,2]
[385454421,1757861877400,178.46187903,0.0002012,2]
[385454422,1757861892626,780.0,0.0002012,2]
[385454424,1757861909142,584.60568882,0.000199,2]
[385454425,1757861937194,960.0,0.0002012,2]
[385454426,1757861954900,-151.56057425,0.00020197,4]
[385454427,1757861954932,-4696.8888515,0.00020522,2]
[385454428,1757861955263,-303.1111485,0.00020522,2]
[385454429,1757861955526,-2462.46206793,0.00020902,2]
[385454430,1757861955631,-10000.01,0.00020902,2]
[385454431,1757861955812,-10000.01,0.00020902,2]
[385454432,1757861955943,-10000.01,0.00020902,2]
[385454433,1757861964876,-1020.0,0.00020693,2]
[385454434,1757861964916,-7960.01,0.00020902,2]
[385454435,1757861965006,-10000.01,0.00020902,2]
[385454436,1757861965127,-10000.01,0.00020902,2]
[385454437,1757861992306,630.83444,0.00030324,120]
[385454438,1757862016240,2000.0,0.0002739,120]
[385454439,1757862035225,-4967.13752754,0.00020693,2]
[385454440,1757862035265,-65.73494492,0.00020693,2]
[385454441,1757862035325,-434.26505508,0.00020693,2]
[385454442,1757862035354,-500.0,0.00020693,2]
[385454443,1757862035382,-500.0,0.00020693,2]
[385454444,1757862035410,-500.0,0.00020693,2]
[385454445,1757862035438,-500.0,0.00020693,2]
[385454446,1757862035467,-500.0,0.00020693,2]
[385454447,1757862035496,-500.0,0.00020693,2]
[385454448,1757862035524,-500.0,0.00020693,2]
[385454449,1757862035553,-500.0,0.00020693,2]
[385454450,1757862035582,-500.0,0.00020693,2]
[385454451,1757862035789,-131.47988984,0.00020901,2]
[385454453,1757862108380,204.87400681,0.000199,2]
[385454455,1757862210357,-0.01,0.0002038,2]
[385454456,1757862210389,-9795.11599319,0.0002038,2]
[385454457,1757862210489,-204.87400681,0.0002038,2]
[385454458,1757862210521,-696.01730667,0.00020485,2]
[385454459,1757862210551,-300.0,0.00020692,2]
[385454460,1757862210581,-1068.52011016,0.00020901,2]
[385454461,1757862210609,-2024.50215915,0.00020902,2]
[385454462,1757862210707,-1412.18283442,0.00020902,2]
[385454463,1757862230367,-1392.03461334,0.00020894,2]
[385454464,1757862230399,-178.0,0.00021105,2]
[385454465,1757862230430,-300.0,0.00021105,2]
[385454466,1757862230499,-6259.94077332,0.00021105,2]
[385454467,1757862230539,-1609.21002913,0.00021105,2]
[385454468,1757862230571,-300.0,0.00021106,20]
[385454469,1757862230602,-300.0,0.00021106,20]
[385454470,1757862230633,-300.0,0.00021106,20]
[385454471,1757862230663,-300.0,0.00021106,20]
[385454472,1757862230694,-300.0,0.00021106,20]
[385454473,1757862230726,-300.0,0.00021106,20]
[385454474,1757862230758,-300.0,0.00021106,20]
[385454475,1757862230792,-300.0,0.00021106,20]
[385454476,1757862230824,-300.0,0.00021106,20]
[385454477,1757862230857,-300.0,0.00021106,20]
[385454478,1757862230890,-300.0,0.00021106,20]
[385454479,1757862231117,-181.58994174,0.00021106,20]
[385454480,1757862292729,396.08974632,0.000199,2]
[385454482,1757862297173,231.47254842,0.00027,120]
[385454483,1757862415811,-1784.5686683,0.00020751,2]
[385454484,1757862415843,-696.01730667,0.00020894,2]
[385454485,1757862415872,-300.0,0.00021105,2]
[385454486,1757862415902,-300.0,0.00021105,2]
[385454487,1757862415933,-1200.0,0.00021105,2]
[385454489,1757862415964,-300.0,0.00021105,2]
[385454494,1757862416150,-442.74830374,0.00021106,2]
[385454496,1757862425737,-5000.0,0.00020895,2]
[385454497,1757862425775,-0.01,0.00021106,2]
[385454498,1757862455845,-3696.01730667,0.00020686,2]
[385454499,1757862455878,-519.92346665,0.00020895,2]
[385454500,1757862455919,-1568.12845336,0.00020895,2]
[385454502,1757862472952,271.56855901,0.000199,2]
[385454503,1757862556345,-2500.0,0.00020895,2]
[385454504,1757862556380,-271.56855884,0.00021149,2]
[385454505,1757862556412,-300.0,0.00021526,20]
[385454506,1757862556444,-300.0,0.00021526,20]
[385454507,1757862556475,-300.0,0.00021526,20]
[385454508,1757862556506,-300.0,0.00021526,20]
[385454509,1757862556537,-300.0,0.00021526,20]
[385454510,1757862556567,-300.0,0.00021526,20]
[385454511,1757862556599,-300.0,0.00021526,20]
[385454512,1757862566101,-5000.0,0.00021311,2]
[385454513,1757862566143,-0.01,0.00021526,20]
[385454514,1757862626245,-5000.0,0.00021311,2]
[385454515,1757862626331,-0.01,0.00021525,2]
[385454552,1757862632004,-299.99,0.00021525,2]
[385454553,1757862632014,-1200.0,0.00021525,2]
[385454554,1757862632024,-299.99,0.00021526,20]
[385454556,1757862632033,-300.0,0.00021526,20]
[385454558,1757862632043,-300.0,0.00021526,20]
[385454559,1757862632053,-300.0,0.00021526,20]
[385454560,1757862632062,-300.0,0.00021526,20]
[385454561,1757862632072,-300.0,0.00021526,20]
[385454562,1757862632082,-300.0,0.00021526,20]
[385454563,1757862632091,-300.0,0.00021526,20]
[385454564,1757862632102,-4953.07186789,0.00021526,2]
[385454565,1757862632112,-168.0,0.00021612,2]
[385454566,1757862632122,-10000.01000001,0.00021817,7]
[385454567,1757862632131,-945.54543846,0.00021817,2]
[385454568,1757862632141,-5406.18122244,0.00021817,2]
[385454569,1757862632150,-335.66885043,0.00021886,2]
[385454570,1757862632166,-286.81356417,0.00021886,2]
[385454616,1757862637884,-323.06302386,0.00021886,2]
[385454618,1757862637894,-12176.74494926,0.00021904,2]
[385454621,1757862638076,-168.0,0.00021906,2]
[385454622,1757862638085,-159.53543,0.00021907,7]
[385454623,1757862638095,-1204.38,0.00021907,3]
[385454624,1757862638109,-602.19,0.00021907,3]
[385454625,1757862638118,-301.09,0.00021907,3]
[385454626,1757862638127,-150.55,0.00021907,3]
[385454627,1757862638137,-451.65,0.00021907,3]
[385454628,1757862638147,-494.53,0.00021907,3]
[385454629,1757862638156,-670.87,0.00021907,3]
[385454630,1757862638165,-335.43,0.00021907,3]
[385454631,1757862638175,-167.72,0.00021907,3]
[385454632,1757862638184,-503.18,0.00021907,3]
[385454633,1757862638194,-217.77739939,0.00021913,2]
[385454634,1757862638203,-160.0,0.00021913,2]
[385454635,1757862638212,-160.0,0.00021913,2]
[385454636,1757862638221,-847.27885267,0.00021913,2]
[385454637,1757862638231,-160.0,0.00021913,2]
[385454638,1757862638240,-290.16277864,0.00021916,2]
[385454639,1757862638252,-437.74179209,0.00021916,2]
[385454640,1757862638262,-500.0,0.00021916,2]
[385454641,1757862638271,-500.0,0.00021916,2]
[385454642,1757862638280,-442.09966962,0.00021916,2]
[385454643,1757862638290,-500.0,0.00021916,2]
[385454644,1757862638300,-500.0,0.00021916,2]
[385454645,1757862638309,-500.0,0.00021916,2]
[385454646,1757862638318,-500.0,0.00021916,2]
[385454647,1757862638329,-500.0,0.00021916,2]
[385454648,1757862638339,-500.0,0.00021916,2]
[385454649,1757862638349,-500.0,0.00021916,2]
[385454650,1757862638361,-500.0,0.00021916,2]
[385454651,1757862638371,-500.0,0.00021916,2]
[385454652,1757862638379,-550.0,0.00021916,2]
[385454653,1757862638388,-500.0,0.00021916,2]
[385454654,1757862638398,-500.0,0.00021916,2]
[385454655,1757862638407,-162.78762882,0.00021916,2]
[385454656,1757862638417,-500.0,0.00021916,2]
[385454657,1757862638427,-500.0,0.00021916,2]
[385454658,1757862638436,-495.75021043,0.00021916,2]
[385454659,1757862638445,-500.0,0.00021916,2]
[385454660,1757862638455,-500.0,0.00021916,2]
[385454661,1757862638465,-208.65314018,0.00021916,2]
[385454662,1757862638474,-378.58896965,0.00021916,2]
[385454663,1757862638483,-500.0,0.00021916,2]
[385454664,1757862638492,-500.0,0.00021916,2]
[385454665,1757862638501,-185.74433742,0.00021916,2]
[385454666,1757862638511,-355.62678771,0.00021916,2]
[385454667,1757862638520,-500.0,0.00021916,2]
[385454668,1757862638529,-500.0,0.00021916,2]
[385454669,1757862638539,-500.0,0.00021916,2]
[385454671,1757862638548,-500.0,0.00021916,2]
[385454673,1757862638557,-269.48192681,0.00021916,2]
[385454674,1757862638567,-500.0,0.00021916,2]
[385454675,1757862638576,-500.0,0.00021916,2]
[385454676,1757862638585,-347.68891673,0.00021916,2]
[385454677,1757862638594,-500.0,0.00021916,2]
[385454678,1757862638603,-180.94391359,0.00021916,2]
[385454679,1757862638614,-500.0,0.00021916,2]
[385454680,1757862638624,-267.73090049,0.00021916,2]
[385454681,1757862638633,-500.0,0.00021916,2]
[385454682,1757862638643,-500.0,0.00021916,2]
[385454683,1757862638652,-500.0,0.00021916,2]
[385454684,1757862638662,-527.31873255,0.00021916,2]
[385454685,1757862638671,-295.33527804,0.00021916,2]
[385454686,1757862638680,-500.0,0.00021916,2]
[385454687,1757862638689,-500.0,0.00021916,2]
[385454688,1757862638698,-281.00611583,0.00021916,2]
[385454689,1757862638707,-500.0,0.00021916,2]
[385454690,1757862638717,-500.0,0.00021916,2]
[385454691,1757862638726,-500.0,0.00021916,2]
[385454692,1757862638735,-500.0,0.00021916,2]
[385454693,1757862638744,-500.0,0.00021916,2]
[385454694,1757862638753,-500.0,0.00021916,2]
[385454695,1757862638763,-500.0,0.00021916,2]
[385454696,1757862638772,-500.0,0.00021916,2]
[385454697,1757862638782,-500.0,0.00021916,2]
[385454698,1757862638791,-500.0,0.00021916,2]
[385454699,1757862638800,-500.0,0.00021916,2]
[385454700,1757862638808,-167.96366454,0.00021916,2]
[385454701,1757862638817,-600.0,0.00021916,2]
[385454702,1757862638826,-500.0,0.00021917,2]
[385454703,1757862638836,-480.0,0.00021917,2]
[385454704,1757862638845,-571.06608954,0.00021917,2]
[385454705,1757862638856,-480.0,0.00021917,2]
[385454706,1757862638865,-491.87,0.00021917,2]
[385454707,1757862638875,-424.37260347,0.00021917,2]
[385454708,1757862638885,-959.61,0.00021917,2]
[385454709,1757862638896,-480.0,0.00021917,2]
[385454710,1757862638905,-480.0,0.00021917,2]
[385454711,1757862638914,-350.86788375,0.00021917,2]
[385454712,1757862638923,-480.0,0.00021917,2]
[385454713,1757862638932,-491.61909584,0.00021917,2]
[385454714,1757862638941,-480.0,0.00021917,2]
[385454715,1757862638951,-483.18616691,0.00021917,2]
[385454716,1757862638960,-480.0,0.00021917,2]
[385454717,1757862638969,-480.0,0.00021917,2]
[385454718,1757862638979,-206.37857666,0.00021917,2]
[385454719,1757862638988,-480.0,0.00021917,2]
[385454720,1757862638997,-486.07950589,0.00021917,2]
[385454721,1757862639006,-643.05,0.00021917,2]
[385454722,1757862639015,-480.0,0.00021917,2]
[385454723,1757862639024,-480.0,0.00021917,2]
[385454724,1757862639033,-480.0,0.00021917,2]
[385454725,1757862639043,-402.7142657,0.00021917,2]
[385454726,1757862639051,-480.0,0.00021917,2]
[385454727,1757862639061,-411.44615361,0.00021917,2]
[385454728,1757862639074,-68.55384639,0.00021917,2]
[385454729,1757862639083,-157.23534942,0.00021917,2]
[385454730,1757862639092,-480.0,0.00021917,2]
[385454731,1757862639101,-480.0,0.00021917,2]
[385454732,1757862639113,-480.0,0.00021917,2]
[385454733,1757862639122,-480.0,0.00021917,2]
[385454734,1757862639131,-480.0,0.00021917,2]
[385454735,1757862639139,-480.0,0.00021917,2]
[385454736,1757862639149,-480.0,0.00021917,2]
[385454737,1757862639158,-480.0,0.00021917,2]
[385454738,1757862639167,-480.0,0.00021917,2]
[385454739,1757862639176,-480.0,0.00021917,2]
[385454740,1757862639184,-480.0,0.00021917,2]
[385454741,1757862639193,-480.0,0.00021917,2]
[385454742,1757862639202,-480.0,0.00021917,2]
[385454743,1757862639211,-480.0,0.00021917,2]
[385454744,1757862639220,-480.0,0.00021917,2]
[385454745,1757862639230,-480.0,0.00021917,2]
[385454746,1757862639240,-480.0,0.00021917,2]
[385454747,1757862639251,-695.45,0.00021917,2]
[385454748,1757862639260,-480.0,0.00021917,2]
[385454749,1757862639269,-522.3796169,0.00021917,2]
[385454750,1757862639278,-480.0,0.00021917,2]
[385454751,1757862639287,-781.03,0.00021917,2]
[385454752,1757862639296,-480.0,0.00021917,2]
[385454753,1757862639305,-480.0,0.00021917,2]
[385454754,1757862639314,-480.0,0.00021917,2]
[385454755,1757862639323,-480.0,0.00021917,2]
[385454756,1757862639332,-480.0,0.00021917,2]
[385454757,1757862639342,-500.0,0.00021917,2]
[385454758,1757862639351,-480.0,0.00021917,2]
[385454759,1757862639363,-480.0,0.00021917,2]
[385454760,1757862639373,-480.0,0.00021917,2]
[385454761,1757862639382,-379.84840957,0.00021917,2]
[385454762,1757862639391,-480.0,0.00021917,2]
[385454763,1757862639401,-322.77454181,0.00021917,2]
[385454764,1757862639410,-480.0,0.00021917,2]
[385454765,1757862639420,-480.0,0.00021917,2]
[385454766,1757862639430,-480.0,0.00021917,2]
[385454767,1757862639439,-487.16989621,0.00021917,2]
[385454769,1757862639449,-480.0,0.00021917,2]
[385454770,1757862639458,-492.28722216,0.00021917,2]
[385454771,1757862639467,-480.0,0.00021917,2]
[385454772,1757862639476,-480.0,0.00021917,2]
[385454773,1757862639485,-480.0,0.00021917,2]
[385454774,1757862639494,-480.0,0.00021917,2]
[385454775,1757862639503,-309.54569016,0.00021917,2]
[385454776,1757862639512,-480.0,0.00021917,2]
[385454777,1757862639522,-480.0,0.00021917,2]
[385454778,1757862639532,-480.0,0.00021917,2]
[385454779,1757862639541,-480.0,0.00021917,2]
[385454780,1757862639551,-485.96869765,0.00021917,2]
[385454781,1757862639560,-480.0,0.00021917,2]
[385454782,1757862639569,-480.0,0.00021917,2]
[385454783,1757862639579,-480.0,0.00021917,2]
[385454784,1757862639588,-480.0,0.00021917,2]
[385454785,1757862639597,-480.0,0.00021917,2]
[385454786,1757862639606,-480.0,0.00021917,2]
[385454787,1757862639616,-480.0,0.00021917,2]
[385454788,1757862639625,-485.91174176,0.00021917,2]
[385454789,1757862639634,-482.92183076,0.00021917,2]
[385454790,1757862639644,-480.0,0.00021917,2]
[385454792,1757862639654,-480.0,0.00021917,2]
[385454794,1757862639663,-480.0,0.00021917,2]
[385454796,1757862639673,-480.0,0.00021917,2]
[385454798,1757862639682,-480.0,0.00021917,2]
[385454800,1757862639691,-480.0,0.00021917,2]
[385454802,1757862639700,-480.0,0.00021917,2]
[385454804,1757862639710,-480.0,0.00021917,2]
[385454806,1757862639719,-480.0,0.00021917,2]
[385454807,1757862639728,-480.0,0.00021917,2]
[385454809,1757862639738,-480.0,0.00021917,2]
[385454811,1757862639747,-480.0,0.00021917,2]
[385454813,1757862639756,-480.0,0.00021917,2]
[385454815,1757862639766,-480.0,0.00021917,2]
[385454817,1757862639775,-480.0,0.00021917,2]
[385454819,1757862639784,-480.0,0.00021917,2]
[385454821,1757862639793,-480.0,0.00021917,2]
[385454823,1757862639803,-1676.23,0.00021917,2]
[385454826,1757862639812,-480.0,0.00021917,2]
[385454827,1757862639821,-480.0,0.00021917,2]
[385454829,1757862639830,-480.0,0.00021917,2]
[385454831,1757862639839,-480.0,0.00021917,2]
[385454834,1757862639852,-1017.9,0.00021917,2]
[385454835,1757862639863,-480.0,0.00021917,2]
[385454838,1757862639872,-480.0,0.00021917,2]
[385454839,1757862639882,-496.03538711,0.00021917,2]
[385454841,1757862639892,-480.0,0.00021917,2]
[385454843,1757862639902,-480.0,0.00021917,2]
[385454845,1757862639911,-480.0,0.00021917,2]
[385454847,1757862639920,-480.0,0.00021917,2]
[385454849,1757862639930,-480.0,0.00021917,2]
[385454851,1757862639939,-480.0,0.00021917,2]
[385454853,1757862639949,-480.0,0.00021917,2]
[385454855,1757862639958,-480.0,0.00021917,2]
[385454857,1757862639967,-770.11,0.00021917,2]
[385454859,1757862639977,-480.0,0.00021917,2]
[385454861,1757862639986,-480.0,0.00021917,2]
[385454863,1757862639996,-482.00226032,0.00021917,2]
[385454866,1757862640005,-376.8345545,0.00021917,2]
[385454867,1757862640015,-480.0,0.00021917,2]
[385454869,1757862640024,-480.0,0.00021917,2]
[385454871,1757862640033,-480.0,0.00021917,2]
[385454873,1757862640042,-842.18,0.00021917,2]
[385454875,1757862640051,-480.0,0.00021917,2]
[385454876,1757862640062,-480.0,0.00021917,2]
[385454878,1757862640071,-480.0,0.00021917,2]
[385454880,1757862640080,-480.0,0.00021917,2]
[385454881,1757862640089,-837.84,0.00021917,2]
[385454883,1757862640099,-396.11649269,0.00021917,2]
[385454885,1757862640110,-190.53122918,0.00021917,2]
[385454886,1757862640119,-480.0,0.00021917,2]
[385454887,1757862640128,-480.0,0.00021917,2]
[385454888,1757862640138,-480.0,0.00021917,2]
[385454889,1757862640148,-480.0,0.00021917,2]
[385454891,1757862640157,-480.0,0.00021917,2]
[385454893,1757862640166,-480.0,0.00021917,2]
[385454894,1757862640175,-480.0,0.00021917,2]
[385454895,1757862640185,-480.0,0.00021917,2]
[385454896,1757862640194,-482.39717279,0.00021917,2]
[385454897,1757862640203,-480.0,0.00021917,2]
[385454898,1757862640214,-174.01,0.00021917,2]
[385454899,1757862640223,-480.0,0.00021917,2]
[385454900,1757862640232,-500.0,0.00021917,2]
[385454901,1757862640241,-480.0,0.00021917,2]
[385454902,1757862640252,-480.0,0.00021917,2]
[385454903,1757862640261,-480.0,0.00021917,2]
[385454904,1757862640271,-480.0,0.00021917,2]
[385454905,1757862640280,-480.0,0.00021917,2]
[385454906,1757862640291,-480.0,0.00021917,2]
[385454907,1757862640300,-480.0,0.00021917,2]
[385454908,1757862640313,-480.0,0.00021917,2]
[385454909,1757862640323,-481.41228729,0.00021917,2]
[385454910,1757862640332,-480.0,0.00021917,2]
[385454911,1757862640342,-480.0,0.00021917,2]
[385454912,1757862640352,-883.32,0.00021917,2]
[385454913,1757862640363,-480.0,0.00021917,2]
[385454914,1757862640373,-480.0,0.00021917,2]
[385454915,1757862640382,-480.0,0.00021917,2]
[385454916,1757862640391,-1718.52,0.00021917,2]
[385454917,1757862640401,-921.7,0.00021917,2]
[385454918,1757862640411,-480.0,0.00021917,2]
[385454919,1757862640421,-849.99,0.00021917,2]
[385454920,1757862640436,-480.0,0.00021917,2]